bitfinex-derivatives/quotes_ETHF0:USTF0_20250816
["timestamp","ask_amount","ask_price","bid_price","bid_amount"]
[1755323740419,1.4351,4423.0,4422.9,22.1114]
[1755323740420,4.6429,4423.0,4422.9,22.1114]
[1755323740615,4.6429,4423.0,4422.9,22.356]
[1755323740814,4.6429,4423.0,4422.9,21.2638]
[1755323741123,4.6429,4423.0,4422.9,22.1114]
[1755323741325,6.09647845,4423.0,4422.9,22.1114]
[1755323742525,6.09647845,4423.0,4422.9,21.6784]
[1755323742725,6.09647845,4423.0,4422.9,21.9384]
[1755323742926,6.09647845,4423.0,4422.9,22.1114]
[1755323743526,5.30977845,4423.0,4422.9,22.356]
[1755323743818,0.6147,4422.8,4421.4,0.3758]
[1755323744022,1.4351,4421.3,4421.2,0.8088]
[1755323744227,0.5728,4421.1,4420.8,21.5208]
[1755323744423,6.09647845,4421.1,4420.8,21.5208]
[1755323744616,6.09647845,4421.1,4421.0,1.47184543]
[1755323744819,6.09647845,4421.1,4421.0,1.22724543]
[1755323745226,6.09647845,4421.1,4421.0,0.96724543]
[1755323745427,6.09647845,4421.1,4421.0,0.00384543]
[1755323746828,6.09647845,4421.1,4421.0,1.22724543]
[1755323747324,4.6429,4421.1,4421.0,1.22724543]
[1755323747825,4.021,4421.1,4421.0,1.47184543]
[1755323748126,3.7754,4421.1,4421.0,1.47184543]
[1755323748625,4.6678,4421.1,4421.0,0.00384543]
[1755323749226,6.12137845,4421.1,4421.0,1.22354543]
[1755323749630,6.12137845,4421.1,4421.0,0.97134543]
[1755323749933,6.12137845,4421.1,4421.0,0.79704543]
[1755323750229,6.12137845,4421.1,4421.0,0.25104543]
[1755323750930,6.12137845,4421.1,4421.0,0.00384543]
[1755323751124,6.12137845,4421.1,4421.0,0.79704543]
[1755323751329,6.12137845,4421.1,4421.0,0.00384543]
[1755323753331,6.12137845,4421.1,4421.0,0.25104543]
[1755323753626,6.12137845,4421.1,4421.0,0.00384543]
[1755323755331,6.12137845,4421.1,4421.0,0.62894543]
[1755323755934,6.12137845,4421.1,4421.0,0.79704543]
[1755323756335,6.12137845,4421.1,4421.0,0.00384543]
[1755323757736,6.12137845,4421.1,4421.0,0.79704543]
[1755323757936,6.12137845,4421.1,4421.0,1.22354543]
[1755323758332,6.12137845,4421.1,4421.0,0.79704543]
[1755323758533,6.12137845,4421.1,4421.0,0.00384543]
[1755323758936,6.12137845,4421.1,4421.0,0.62894543]
[1755323759130,6.12137845,4421.1,4421.0,1.22354543]
[1755323759336,6.12137845,4421.1,4421.0,1.48034543]
[1755323760139,6.12137845,4421.1,4421.0,1.22354543]
[1755323765842,3.2078,4421.1,4421.0,1.48034543]
[1755323766941,2.5694,4421.1,4421.0,4.48034543]
[1755323767140,2.5694,4421.1,4421.0,1.48034543]
[1755323768539,1.70167845,4421.5,4421.0,0.59344543]
[1755323768738,3.2078,4421.6,4421.4,0.3424]
[1755323768943,3.2078,4421.6,4421.5,0.8514]
[1755323769339,2.53717845,4422.0,4421.9,0.8514]
[1755323769542,2.92317845,4422.0,4421.9,0.8514]
[1755323769943,2.92317845,4422.0,4421.9,0.3424]
[1755323770139,2.92317845,4422.0,4421.7,0.2522]
[1755323770140,0.8856,4421.9,4421.8,0.1681]
[1755323770344,1.4696,4421.9,4421.8,0.4203]
[1755323770535,1.4696,4421.9,4421.8,0.5946]
[1755323771749,3.2078,4422.1,4421.8,0.8514]
[1755323771949,3.2078,4422.1,4422.0,0.8514]
[1755323772751,3.4559,4422.1,4422.0,0.8514]
[1755323772951,3.2078,4422.1,4422.0,0.8514]
[1755323773450,0.8856,4422.0,4421.5,0.2568]
[1755323773647,2.03757845,4421.6,4421.5,0.5992]
[1755323773850,2.92317845,4421.6,4421.5,0.8514]
[1755323774256,1.95657845,4421.6,4421.5,0.8514]
[1755323774446,0.5064,4421.9,4421.5,0.8514]
[1755323774646,0.2481,4421.8,4421.7,0.3424]
[1755323774848,0.2481,4421.8,4421.7,0.8514]
[1755323775352,1.3053,4421.8,4421.7,0.8514]
[1755323776155,1.4696,4421.8,4421.7,0.8514]
[1755323776559,1.0538,4421.8,4421.7,0.8514]
[1755323776959,1.3053,4421.8,4421.7,0.8514]
[1755323777160,1.4696,4421.8,4421.7,0.8514]
[1755323778155,1.0538,4421.8,4421.7,0.8514]
[1755323778555,1.4743,4421.8,4421.7,0.8514]
[1755323779362,1.4743,4421.8,4421.7,0.5946]
[1755323779959,1.4743,4421.8,4421.7,0.8356]
[1755323782856,0.5878,4421.8,4421.1,0.2454]
[1755323783055,3.8096,4421.6,4421.5,0.3249]
[1755323783261,3.8096,4421.6,4421.5,0.5703]
[1755323783465,4.6828,4421.6,4421.5,0.5703]
[1755323784164,4.6828,4421.6,4421.0,20.86684543]
[1755323784165,6.13637845,4422.1,4422.0,0.5703]
[1755323785465,0.8732,4422.0,4421.2,0.241]
[1755323785665,2.92857845,4421.3,4421.0,20.86684543]
[1755323785856,4.6828,4421.1,4421.0,21.03214543]
[1755323786365,4.6828,4421.1,4421.0,21.19174543]
[1755323786566,4.6828,4421.1,4421.0,21.43714543]
[1755323787066,4.6828,4421.1,4421.0,20.86684543]
[1755323787759,4.6828,4421.1,4421.0,0.00384543]
[1755323787961,4.85025412,4421.1,4420.2,0.0033]
[1755323788169,1.475,4420.3,4420.2,0.5789]
[1755323788468,1.475,4420.3,4420.2,0.8199]
[1755323788966,1.475,4421.0,4420.9,0.1653]
[1755323789168,1.475,4421.0,4420.9,0.5736]
[1755323789465,1.475,4421.0,4420.6,0.2487]
[1755323789766,0.1681,4420.4,4420.3,0.5789]
[1755323789963,0.6018,4420.2,4420.1,3.538]
[1755323790163,0.3592,4420.4,4420.1,24.638]
[1755323790460,0.8634,4420.5,4420.4,0.5712]
[1755323790664,1.475,4420.5,4420.4,0.8199]
[1755323790863,1.475,4420.5,4420.4,0.5789]
[1755323792469,0.6116,4420.0,4418.9,3.2078]
[1755323792675,3.567,4420.7,4419.9,1.27203]
[1755323792968,3.4694,4420.7,4420.6,0.8199]
[1755323793465,4.6828,4420.7,4420.6,0.8199]
[1755323793669,4.6828,4420.7,4420.6,0.5789]
[1755323793963,4.6828,4420.7,4420.5,20.858]
[1755323794169,3.8096,4420.7,4420.6,0.3249]
[1755323794364,3.8096,4420.7,4420.6,0.3335]
[1755323794571,4.0712,4420.7,4420.6,0.8199]
[1755323794973,0.2616,4421.1,4421.0,0.3302]
[1755323795170,1.475,4421.1,4421.0,0.5789]
[1755323796274,1.475,4421.1,4421.0,0.8199]
[1755323796769,3.2078,4421.7,4421.0,0.8199]
[1755323796770,0.2524,4421.6,4421.0,0.8199]
[1755323796970,3.2078,4421.7,4421.6,0.3302]
[1755323797172,3.2078,4421.7,4421.6,23.13047845]
[1755323798271,0.8634,4422.4,4422.3,0.3302]
[1755323798570,0.8634,4422.4,4422.3,21.6759]
[1755323798874,0.5271,4422.4,4422.3,21.6759]
[1755323799575,0.2616,4422.4,4422.3,21.6759]
[1755323800375,0.2616,4422.4,4421.8,0.2454]
[1755323800376,0.514,4422.1,4421.8,0.2454]
[1755323800573,0.514,4422.1,4421.7,20.855]
[1755323800574,1.2134,4422.4,4422.3,0.8199]
[1755323800970,1.2134,4422.4,4422.3,0.5789]
[1755323801279,1.475,4422.4,4422.3,0.5789]
[1755323801469,2.92857845,4422.4,4422.3,0.5736]
[1755323801673,2.92857845,4422.4,4422.0,0.2487]
[1755323801875,0.8732,4422.3,4421.7,21.096]
[1755323802179,0.9477,4421.8,4421.7,21.4262]
[1755323802569,0.6953,4421.8,4421.7,21.6749]
[1755323803377,1.475,4421.8,4421.7,20.855]
[1755323804079,1.475,4421.8,4421.7,21.4339]
[1755323804277,1.475,4421.8,4421.7,21.6749]
[1755323804875,1.475,4421.8,4421.7,23.12847845]
[1755323804876,0.6953,4421.8,4421.7,23.12847845]
[1755323805081,0.6953,4421.8,4421.7,21.6749]
[1755323805476,0.9477,4421.8,4421.7,21.6749]
[1755323805678,1.475,4421.8,4421.7,21.6749]
[1755323805980,0.2616,4421.8,4421.7,21.6749]
[1755323806982,3.2078,4422.0,4421.9,0.3302]
[1755323807172,3.2078,4422.0,4421.9,0.8199]
[1755323807377,3.2078,4422.0,4421.9,2.27347845]
[1755323807774,4.6828,4422.0,4421.9,0.3249]
[1755323808075,4.6828,4422.0,4421.7,20.855]
[1755323808282,3.8096,4422.0,4421.7,20.855]
[1755323808483,0.5974,4421.8,4421.7,21.0314]
[1755323808681,0.5974,4421.8,4421.7,21.4563]
[1755323808682,1.4859,4421.8,4421.7,21.4563]
[1755323809484,1.4859,4421.8,4421.7,21.4621]
[1755323810081,3.2078,4422.0,4421.7,21.4621]
[1755323810082,3.2078,4422.0,4421.9,0.358]
[1755323810281,3.2078,4422.0,4421.9,2.30317845]
[1755323810881,4.6941,4422.0,4421.7,20.855]
[1755323811085,1.4863,4421.9,4421.8,0.1764]
[1755323811382,0.8594,4421.9,4421.8,0.3522]
[1755323811583,0.8594,4421.9,4421.8,0.6071]
[1755323811783,1.4863,4421.9,4421.8,0.6071]
[1755323811980,3.2078,4422.0,4421.8,2.51261845]
[1755323812288,1.4863,4422.1,4422.0,0.6071]
[1755323813080,1.4863,4422.1,4422.0,0.1764]
[1755323814089,1.4863,4422.1,4421.7,21.1005]
[1755323814288,4.66137845,4422.6,4421.7,21.4585]
[1755323814289,0.5978,4421.8,4421.7,21.4585]
[1755323814487,1.4863,4421.8,4421.7,21.4585]
[1755323814987,1.4863,4421.8,4421.7,21.4621]
[1755323815389,1.4863,4421.8,4421.7,21.2072]
[1755323816377,1.4863,4421.8,4421.7,21.4563]
[1755323816784,1.4863,4421.8,4421.7,22.91567845]
[1755323816984,3.2078,4422.1,4421.7,23.15817845]
[1755323817183,0.2616,4422.0,4421.9,0.358]
[1755323817483,1.4863,4422.0,4421.9,0.6071]
[1755323818484,0.8594,4422.0,4421.9,0.6071]
[1755323818684,0.8594,4422.0,4421.9,0.8496]
[1755323819184,0.6909,4422.0,4421.9,0.8496]
[1755323821184,0.6909,4422.0,4421.9,3.894044]
[1755323821390,1.2247,4422.2,4422.1,0.8496]
[1755323821693,1.4863,4422.2,4422.1,23.14717845]
[1755323823592,3.2078,4422.8,4422.2,0.4916]
[1755323823790,1.4863,4422.3,4422.1,20.844]
[1755323823991,0.2456,4422.2,4422.1,20.844]
[1755323824199,1.4863,4422.2,4422.1,20.844]
[1755323826399,1.65528789,4422.2,4422.1,20.844]
[1755323829801,1.4863,4422.2,4422.1,21.2056]
[1755323830092,1.4863,4422.2,4422.1,21.6936]
[1755323830299,1.4863,4422.2,4422.1,21.4511]
[1755323839492,1.4863,4422.2,4422.1,20.844]
[1755323840805,1.4863,4422.2,4422.1,21.0179]
[1755323841502,1.4863,4422.2,4422.1,20.844]
[1755323841700,1.4863,4422.2,4422.1,21.4499]
[1755323841899,1.5154,4422.2,4422.1,21.4557]
[1755323842103,1.5154,4422.2,4422.1,21.7131]
[1755323842304,1.5154,4422.2,4422.1,21.4557]
[1755323842907,1.68467482,4422.2,4422.1,21.1842]
[1755323843294,1.68467482,4422.2,4422.1,20.844]
[1755323848606,1.68467482,4422.2,4422.1,21.0179]
[1755323848807,1.68467482,4422.2,4422.1,21.4557]
[1755323849105,1.5154,4422.2,4422.1,21.4557]
[1755323849406,1.68469522,4422.2,4422.1,21.1842]
[1755323849708,1.68469522,4422.2,4422.1,20.844]
[1755323851502,1.68469522,4422.2,4422.1,21.4499]
[1755323851705,1.68469522,4422.2,4422.1,21.7131]
[1755323851902,1.5154,4422.2,4422.1,21.7131]
[1755323852104,1.1187,4422.2,4422.1,21.7131]
[1755323852504,0.2527,4422.4,4422.2,0.5231]
[1755323852806,1.68758882,4422.3,4422.2,0.6081]
[1755323853006,1.68758882,4422.3,4422.2,3.652544]
[1755323853303,1.68758882,4422.3,4422.2,3.656144]
[1755323857210,1.68758882,4422.3,4422.2,3.913544]
[1755323857710,0.2527,4422.4,4422.3,0.5231]
[1755323857910,1.07800394,4422.4,4422.3,2.32267845]
[1755323858404,3.2078,4422.5,4422.3,2.32267845]
[1755323858405,3.2078,4422.5,4422.3,2.77455845]
[1755323858609,3.2078,4422.5,4422.4,21.6981]
[1755323860311,3.4605,4422.5,4422.4,24.742544]
[1755323860511,0.2527,4422.5,4422.4,24.742544]
[1755323860813,0.2527,4422.8,4422.4,24.219444]
[1755323861015,0.2527,4422.8,4422.7,0.8691]
[1755323861217,0.2527,4422.8,4422.7,21.6961]
[1755323861409,1.5183,4422.8,4422.7,21.6961]
[1755323863511,0.2527,4422.8,4422.7,21.6961]
[1755323864916,1.3434,4422.8,4422.7,21.6961]
[1755323865111,1.5183,4422.8,4422.7,21.6961]
[1755323865311,1.5183,4422.8,4422.7,24.740544]
[1755323866115,0.9087,4423.0,4422.7,24.217444]
[1755323866416,1.2656,4423.0,4422.9,2.32267845]
[1755323866716,1.2656,4423.0,4422.9,23.14567845]
[1755323867016,1.5183,4423.0,4422.9,23.14567845]
[1755323868816,1.5183,4423.0,4422.9,21.6921]
[1755323869012,1.5183,4423.0,4422.9,22.27657845]
[1755323869316,1.4914,4423.0,4422.9,21.4111]
[1755323870418,1.4914,4423.0,4422.9,24.461144]
[1755323872219,1.4914,4423.0,4422.9,24.704244]
[1755323872519,0.8623,4423.0,4422.9,24.704244]
[1755323872714,3.2078,4423.1,4422.9,24.704244]
[1755323873019,3.2078,4423.1,4423.0,2.29067845]
[1755323873219,3.4579,4423.1,4423.0,2.29067845]
[1755323873515,3.2078,4423.1,4423.0,2.29067845]
[1755323873814,3.2078,4423.1,4423.0,2.29519313]
[1755323874315,0.2501,4423.4,4423.3,0.3341]
[1755323874620,0.2501,4423.6,4423.5,0.8371]
[1755323874815,0.5008,4423.6,4423.5,23.10767845]
[1755323875021,0.8792,4423.6,4423.5,23.10767845]
[1755323875318,0.8792,4423.6,4423.5,26.15212245]
[1755323875522,1.299,4423.6,4423.5,26.15212245]
[1755323875820,0.499,4423.6,4423.5,26.15212245]
[1755323876021,1.4728,4423.6,4423.5,26.15212245]
[1755323876222,0.8437,4423.6,4423.5,26.15212245]
[1755323876424,0.6699,4423.6,4423.5,26.15212245]
[1755323876616,3.2078,4423.9,4423.5,26.15212245]
[1755323876817,3.4579,4423.9,4423.8,2.29067845]
[1755323877018,3.4579,4423.9,4423.8,23.10567845]
[1755323877420,4.1284,4423.9,4423.8,23.10567845]
[1755323877825,3.2078,4423.9,4423.8,22.86257845]
[1755323878022,4.6806,4423.9,4423.8,23.10567845]
[1755323878225,1.4728,4423.9,4423.8,23.10567845]
[1755323878826,1.4728,4423.9,4423.8,22.86257845]
[1755323879030,1.4728,4423.9,4423.8,20.815]
[1755323880229,0.5936,4423.7,4423.5,0.2599]
[1755323880427,1.4728,4423.7,4423.6,20.812]
[1755323880629,1.4728,4423.7,4423.6,20.9791]
[1755323880820,1.4728,4423.7,4423.6,21.4002]
[1755323881022,1.4728,4423.7,4423.0,0.00451468]
[1755323881230,1.4728,4423.1,4423.0,0.00451468]
[1755323881424,2.92637845,4423.1,4423.0,20.81551468]
[1755323881726,2.92637845,4423.1,4423.0,19.75151468]
[1755323882431,0.5936,4422.9,4422.8,20.81]
[1755323882633,4.6806,4422.9,4422.8,20.81]
[1755323885029,4.6806,4422.9,4422.6,0.6119]
[1755323885030,3.8014,4422.9,4421.9,0.6119]
[1755323885237,0.5936,4422.8,4422.7,0.4099]
[1755323885437,0.5936,4422.8,4421.8,3.2078]
[1755323885643,1.45357845,4422.7,4421.9,20.809]
[1755323885941,0.5936,4421.6,4421.5,33.1619]
[1755323886138,1.4728,4421.6,4421.5,53.9709]
[1755323886341,4.6806,4421.6,4421.5,53.359]
[1755323886643,4.6806,4421.6,4420.6,3.2078]
[1755323886837,0.5936,4421.1,4421.0,1.86347845]
[1755323887139,1.4728,4421.1,4421.0,23.70447845]
[1755323887334,0.2507,4421.5,4421.4,0.5747]
[1755323887536,3.2078,4421.6,4421.5,1.4429]
[1755323887939,3.2078,4422.3,4421.5,0.5747]
[1755323888139,1.4728,4421.7,4421.6,1.4429]
[1755323889243,0.3784,4422.0,4421.6,0.5747]
[1755323889439,0.2507,4421.9,4421.8,0.5747]
[1755323889638,0.3784,4422.2,4421.8,21.3847]
[1755323889841,1.4728,4422.2,4422.1,1.4429]
[1755323890644,1.4728,4422.2,4422.1,1.1866]
[1755323892242,1.4728,4422.2,4422.1,1.4429]
[1755323892440,3.8032,4422.3,4422.2,4.487344]
[1755323892651,3.2078,4422.8,4422.2,25.296344]
[1755323892944,0.5936,4422.7,4422.6,0.1635]
[1755323893142,0.5936,4422.7,4422.6,23.44917845]
[1755323893339,3.2078,4423.3,4422.6,22.26257845]
[1755323893547,0.8792,4425.1,4423.3,0.45178]
[1755323893743,0.5936,4424.6,4424.0,3.2078]
[1755323894045,0.5936,4423.6,4423.5,3.2078]
[1755323894249,1.4728,4423.6,4423.5,24.0658]
[1755323894549,0.2501,4423.6,4423.5,24.0658]
[1755323894744,0.2501,4424.0,4423.5,24.0658]
[1755323894949,0.5008,4424.8,4423.9,1.45357845]
[1755323895151,1.4728,4424.7,4424.6,1.45357845]
[1755323895447,1.4728,4424.7,4424.6,22.31657845]
[1755323896749,1.4728,4424.7,4424.6,20.863]
[1755323897841,0.8792,4424.6,4424.2,3.2078]
[1755323898040,3.2078,4424.9,4424.2,3.2078]
[1755323898041,1.4728,4424.3,4424.2,3.2078]
[1755323898247,1.4728,4424.3,4424.2,20.853]
[1755323899246,0.9107,4424.2,4423.7,3.2078]
[1755323899451,1.5138,4423.8,4423.7,3.2078]
[1755323899650,1.5138,4423.8,4423.7,24.0598]
[1755323899945,1.5138,4423.8,4423.7,24.0578]
[1755323900452,1.5138,4423.8,4423.7,27.099244]
[1755323902146,1.5138,4423.8,4423.7,6.252244]
[1755323902352,1.5138,4423.8,4423.7,27.091244]
[1755323903442,1.5138,4423.8,4423.7,6.252244]
[1755323903844,1.5138,4423.8,4423.7,27.087244]
[1755323904045,1.5138,4423.8,4423.7,6.252244]
[1755323904245,1.5138,4423.8,4423.7,27.085244]
[1755323906049,1.5138,4423.8,4423.7,23.877444]
[1755323910855,1.5138,4423.8,4423.7,23.866444]
[1755323911056,1.5138,4423.8,4423.7,2.379744]
[1755323911251,7.7216,4423.8,4422.7,3.2078]
[1755323911452,0.8213,4422.9,4422.8,21.0631]
[1755323911857,0.8213,4422.9,4422.8,21.2284]
[1755323912661,0.8213,4422.9,4422.8,21.2314]
[1755323913061,0.8213,4422.9,4422.8,21.4778]
[1755323913557,0.8213,4422.9,4422.8,21.4748]
[1755323913951,0.8213,4422.9,4422.8,22.02]
[1755323914151,0.8213,4422.9,4422.8,22.2712]
[1755323915561,0.8213,4422.9,4422.8,22.02]
[1755323916254,0.8213,4422.9,4422.8,22.2712]
[1755323918356,0.8213,4422.9,4422.8,22.2582]
[1755323918560,0.5584,4422.9,4422.8,23.71524266]
[1755323918864,0.8213,4422.9,4422.8,23.71524266]
[1755323919058,0.4401,4422.9,4422.8,23.71524266]
[1755323919257,0.1772,4422.9,4422.8,23.71524266]
[1755323919456,0.4401,4422.9,4422.8,23.71524266]
[1755323920055,3.2078,4423.8,4422.8,23.14064266]
[1755323920264,0.8213,4423.7,4423.6,2.90824266]
[1755323920462,0.8213,4423.7,4423.6,23.71524266]
[1755323920659,0.8213,4423.7,4423.6,22.007]
[1755323921055,0.8213,4423.7,4423.6,21.6247]
[1755323921259,0.8213,4423.7,4423.6,21.0501]
[1755323921667,0.8213,4423.7,4423.6,21.8441]
[1755323921967,0.98850156,4423.7,4423.6,21.4618]
[1755323923564,0.2346,4423.3,4423.0,0.2431]
[1755323923869,0.8213,4423.1,4423.0,20.821]
[1755323924067,0.8213,4423.1,4423.0,20.9863]
[1755323924366,0.8213,4423.1,4423.0,21.8581]
[1755323925270,0.8213,4423.1,4423.0,24.902544]
[1755323926167,0.98856104,4423.1,4423.0,24.902544]
[1755323926564,0.98856104,4423.1,4423.0,24.520244]
[1755323926966,0.98856104,4423.1,4423.0,3.699244]
[1755323927164,0.98856104,4423.1,4423.0,24.509244]
[1755323927569,0.98856104,4423.1,4423.0,3.287544]
[1755323927768,0.98856104,4423.1,4423.0,24.260844]
[1755323928365,0.99006104,4423.1,4423.0,3.287544]
[1755323928570,0.99006104,4423.1,4423.0,24.095544]
[1755323929071,0.99006104,4423.1,4423.0,24.256444]
[1755323929270,0.99006104,4423.1,4423.0,24.892544]
[1755323929771,0.99006104,4423.1,4423.0,25.310544]
[1755323931672,0.75516104,4423.1,4423.0,25.310544]
[1755323931971,0.34446104,4423.1,4423.0,25.310544]
[1755323932368,0.59026104,4423.1,4423.0,25.310544]
[1755323932567,0.73806104,4423.1,4423.0,25.310544]
[1755323934373,0.97596104,4423.1,4423.0,25.310544]
[1755323934575,0.16726104,4423.1,4423.0,25.310544]
[1755323934775,3.2078,4423.6,4423.0,24.422644]
[1755323934976,0.34265421,4423.5,4423.4,1.4802]
[1755323935276,0.73625421,4423.5,4423.4,22.2892]
[1755323935775,0.97415421,4423.5,4423.4,22.2892]
[1755323937278,0.97421804,4423.5,4423.4,22.2892]
[1755323937573,0.58851804,4423.5,4423.4,22.2892]
[1755323937778,0.41331804,4423.5,4423.4,22.2892]
[1755323937979,0.73631804,4423.5,4423.4,22.2892]
[1755323939777,0.16751804,4423.5,4423.4,22.2892]
[1755323940281,0.58851804,4423.5,4423.4,22.2892]
[1755323940476,0.97421804,4423.5,4423.4,25.333644]
[1755323940877,0.34271804,4423.5,4423.4,25.333644]
[1755323941078,0.58851804,4423.5,4423.4,3.296444]
[1755323941274,0.97421804,4423.5,4423.4,25.332644]
[1755323943585,0.16751804,4423.5,4423.4,25.332644]
[1755323944784,0.3936,4424.2,4423.4,25.332644]
[1755323944984,0.58069107,4424.1,4424.0,0.5834]
[1755323945184,0.58069107,4424.1,4424.0,22.2872]
[1755323945588,0.97429107,4424.1,4424.0,22.2872]
[1755323946184,0.58859107,4424.1,4424.0,22.2872]
[1755323946580,0.73639107,4424.1,4424.0,22.2872]
[1755323947085,0.97429107,4424.1,4424.0,22.2872]
[1755323947482,0.58859107,4424.1,4424.0,22.2872]
[1755323947686,0.34279107,4424.1,4424.0,22.2872]
[1755323948091,0.58859107,4424.1,4424.0,22.2872]
[1755323948590,0.73639107,4424.1,4424.0,22.2872]
[1755323949386,0.16759107,4424.1,4424.0,22.2872]
[1755323950082,0.73639107,4424.1,4424.0,22.2872]
[1755323950283,0.73639107,4424.1,4424.0,25.331644]
[1755323951783,0.58859107,4424.1,4424.0,25.331644]
[1755323952179,0.73639107,4424.1,4424.0,25.331644]
[1755323953787,0.97429107,4424.1,4424.0,4.524644]
[1755323953997,0.97429107,4424.1,4424.0,25.073544]
[1755323954290,0.97429107,4424.1,4424.0,24.683844]
[1755323954792,0.97429107,4424.1,4424.0,25.073544]
[1755323955093,0.97429107,4424.1,4424.0,4.269544]
[1755323955289,2.43133373,4424.1,4424.0,3.044444]
[1755323955489,5.64003373,4424.1,4424.0,3.296444]
[1755323955986,5.64003373,4424.1,4424.0,2.896644]
[1755323956186,9.0729684,4424.1,4422.8,0.3117]
[1755323956388,1.45704266,4424.4,4422.5,0.2551]
[1755323956389,0.6267,4422.6,4422.5,0.2551]
[1755323956686,0.16759107,4422.6,4422.5,0.8385]
[1755323957078,0.3747,4422.6,4422.5,0.5834]
[1755323957685,0.6267,4422.6,4422.5,0.8385]
[1755323957887,0.79215158,4422.6,4422.5,0.8385]
[1755323958284,0.54015158,4422.6,4422.5,1.4802]
[1755323959486,3.2078,4423.2,4422.5,4.524644]
[1755323959692,0.3001,4423.0,4422.9,0.5772]
[1755323959883,0.46551001,4423.0,4422.9,0.5772]
[1755323960088,0.46551001,4423.0,4422.9,1.463]
[1755323960393,0.54261001,4423.0,4422.9,4.507444]
[1755323962593,0.54255492,4423.0,4422.9,4.507444]
[1755323964295,2.25109758,4423.0,4422.9,3.044444]
[1755323965384,2.2510567,4423.0,4422.9,3.044444]
[1755323969002,2.2510567,4423.0,4422.9,3.302844]
[1755323969501,2.2510567,4423.0,4422.9,3.565344]
[1755323971101,2.2510567,4423.0,4422.9,4.507444]
[1755323971395,1.7990567,4423.0,4422.9,4.507444]
[1755323971792,0.16531404,4423.0,4422.9,4.507444]
[1755323972494,1.45704266,4423.5,4422.9,3.621644]
[1755323972701,3.4616,4423.7,4423.6,1.463]
[1755323972994,3.62677501,4423.7,4423.6,1.463]
[1755323974202,3.75007501,4423.7,4423.6,1.463]
[1755323974700,3.75009971,4423.7,4423.6,1.463]
[1755323977104,3.75012471,4423.7,4423.6,1.463]
[1755323978491,3.37302471,4423.7,4423.6,0.5772]
[1755323978692,5.20716737,4423.7,4423.6,1.463]
[1755323978900,5.45866737,4423.7,4423.6,1.463]
[1755323979101,5.20716737,4423.7,4423.6,1.463]
[1755323982198,3.37302471,4423.7,4423.6,1.463]
[1755323982406,3.54972471,4423.7,4423.6,1.463]
[1755323982706,0.34192471,4423.7,4423.6,1.0981]
[1755323983007,0.41923541,4423.7,4423.6,1.463]
[1755323983205,0.16543541,4423.7,4423.6,1.463]
[1755323987910,3.2078,4424.2,4424.1,0.5772]
[1755323988105,3.2078,4424.2,4424.1,1.463]
[1755323988905,4.66484266,4424.2,4423.7,3.044444]
[1755323989105,2.12064266,4423.8,4423.7,4.523644]
[1755323990605,2.37194266,4423.8,4423.7,4.523644]
[1755323991309,2.37194266,4423.8,4423.7,4.132544]
[1755323992106,2.37194266,4423.8,4423.7,4.523644]
[1755323992307,2.12064266,4423.8,4423.7,4.523644]
[1755323998316,0.173,4423.8,4423.7,3.646144]
[1755323998513,1.95074266,4424.1,4423.7,3.646144]
[1755323998711,1.70834266,4424.1,4423.7,3.646144]
[1755323998911,0.4154,4423.8,4423.7,4.523644]
[1755323999110,0.6636,4423.8,4423.7,4.523644]
[1755323999721,0.82552838,4423.8,4423.7,4.523644]
[1755324000017,0.16192838,4423.8,4423.7,4.523644]
[1755324000705,3.2078,4424.2,4423.7,5.10318666]
[1755324000907,0.1,4425.2,4424.2,1.32919]
[1755324001111,0.1,4425.2,4425.1,4.687]
[1755324003923,0.1,4425.2,4425.1,1.4792]
[1755324004125,0.8879,4425.2,4425.1,1.4792]
[1755324004719,1.4883,4425.2,4425.1,0.5831]
[1755324006020,2.94534266,4425.2,4425.1,0.5831]
[1755324006217,2.94534266,4425.2,4424.6,3.2078]
[1755324006218,2.31624266,4425.2,4424.6,3.2078]
[1755324006422,1.3883,4424.7,4424.6,4.687]
[1755324006929,1.2269,4424.7,4424.6,4.687]
[1755324007121,0.7836,4425.2,4425.1,0.6017]
[1755324007322,1.4883,4425.2,4425.1,1.4792]
[1755324007826,1.3269,4425.2,4425.1,0.8441]
[1755324008127,0.5212,4425.2,4425.1,0.5831]
[1755324008319,1.1503,4425.2,4425.1,1.4792]
[1755324009030,1.3269,4425.2,4425.1,1.4792]
[1755324009220,1.4883,4425.2,4425.1,1.4792]
[1755324010319,1.3269,4425.2,4425.1,1.4792]
[1755324010520,1.4883,4425.2,4424.6,3.2078]
[1755324010726,1.0503,4425.0,4424.9,0.1663]
[1755324010926,1.0503,4425.0,4424.9,0.3407]
[1755324010927,1.2269,4425.0,4424.9,0.3407]
[1755324011127,1.3883,4425.0,4424.9,1.4792]
[1755324011325,1.3883,4425.0,4424.9,0.5831]
[1755324011626,1.3883,4425.0,4424.9,1.4792]
[1755324011822,1.2269,4425.0,4424.9,1.4792]
[1755324012028,0.4212,4425.0,4424.9,1.4792]
[1755324012533,0.4212,4425.0,4424.9,4.523644]
[1755324012729,0.1,4425.2,4425.1,0.6017]
[1755324013031,0.2564886,4425.2,4425.1,1.4792]
[1755324013533,0.4294886,4425.2,4425.1,1.4792]
[1755324013927,1.6447886,4425.2,4425.1,1.4792]
[1755324014124,1.48339429,4425.2,4425.1,1.4792]
[1755324014323,1.22099429,4425.2,4424.9,3.044444]
[1755324014533,2.84534266,4425.0,4424.9,3.627544]
[1755324014728,2.84534266,4425.0,4424.9,4.523644]
[1755324016136,1.2269,4425.0,4424.9,4.523644]
[1755324017032,1.3883,4425.0,4424.9,4.523644]
[1755324017730,1.2269,4425.0,4424.9,4.523644]
[1755324017936,1.3883,4425.0,4424.9,4.523644]